bitfinex-derivatives/quotes_BTCF0:USTF0_20250928
["timestamp","ask_amount","ask_price","bid_price","bid_amount"]
[1759071611661,0.38553394,109930.0,109920.0,1.251354]
[1759071618872,0.38553394,109930.0,109920.0,2.084234]
[1759071621880,0.04414222,109930.0,109920.0,2.084234]
[1759071622085,0.02181222,109930.0,109920.0,2.42562572]
[1759071622481,0.36320394,109930.0,109920.0,2.42562572]
[1759071622683,0.36320394,109930.0,109920.0,2.084234]
[1759071624590,0.36312365,109930.0,109920.0,2.084234]
[1759071627184,0.02173193,109930.0,109920.0,2.084234]
[1759071627390,0.36312365,109930.0,109920.0,2.084234]
[1759071628290,0.02173193,109930.0,109920.0,2.42562572]
[1759071628888,0.02173193,109930.0,109920.0,2.084234]
[1759071629285,0.02173193,109930.0,109920.0,1.684234]
[1759071630283,0.37708172,109940.0,109930.0,0.1119358]
[1759071630489,0.39882582,109940.0,109930.0,0.4727358]
[1759071631192,0.0574341,109940.0,109930.0,0.4727358]
[1759071631389,0.39882582,109940.0,109930.0,0.4727358]
[1759071631897,0.39982582,109940.0,109930.0,0.4727358]
[1759071632699,0.0584341,109940.0,109930.0,0.4727358]
[1759071632995,0.39982582,109940.0,109930.0,0.4727358]
[1759071633592,0.39982582,109940.0,109930.0,0.1119358]
[1759071633798,0.39982582,109940.0,109930.0,0.4727358]
[1759071640589,0.39982582,109940.0,109930.0,0.4809558]
[1759071640789,0.38714582,109940.0,109930.0,0.4809558]
[1759071642096,0.40060582,109940.0,109930.0,0.4809558]
[1759071642303,0.7419153,109940.0,109930.0,0.4727358]
[1759071649997,0.8328328,109940.0,109930.0,0.4727358]
[1759071659297,1.25371766,109940.0,109930.0,0.4517258]
[1759071659706,2.08587766,109940.0,109930.0,0.4517258]
[1759071659901,2.08587766,109940.0,109930.0,0.3608]
[1759071661003,0.03494,109930.0,109920.0,0.451733]
[1759071661204,0.7393853,109930.0,109920.0,0.451733]
[1759071661405,0.7393853,109930.0,109920.0,0.472983]
[1759071662106,0.7393853,109930.0,109920.0,0.474983]
[1759071662609,0.7393853,109930.0,109920.0,0.475983]
[1759071663404,0.8303111,109930.0,109920.0,0.475983]
[1759071665111,0.7393853,109930.0,109920.0,0.475983]
[1759071665613,0.0566841,109930.0,109920.0,0.475983]
[1759071665909,1.2301147,109930.0,109920.0,0.475983]
[1759071670709,0.3980347,109930.0,109920.0,0.475983]
[1759071670904,1.2300747,109930.0,109920.0,0.475983]
[1759071671710,0.3980347,109930.0,109920.0,0.475983]
[1759071671912,1.2300747,109930.0,109920.0,0.475983]
[1759071679121,0.0566841,109930.0,109920.0,0.475983]
[1759071679320,1.1536747,109930.0,109920.0,0.475983]
[1759071681023,1.1536747,109930.0,109920.0,0.836783]
[1759071682420,0.8123241,109930.0,109920.0,0.836783]
[1759071682619,1.1536747,109930.0,109920.0,0.836783]
[1759071688017,0.0566841,109930.0,109920.0,0.836783]
[1759071688220,1.2298747,109930.0,109920.0,0.836783]
[1759071691226,1.20001492,109930.0,109920.0,0.849943]
[1759071691919,1.21262492,109930.0,109920.0,0.849943]
[1759071695930,0.85866432,109930.0,109920.0,0.849943]
[1759071696130,0.02682432,109930.0,109920.0,1.5326442]
[1759071696319,0.36817492,109930.0,109920.0,1.5326442]
[1759071696626,0.36817492,109930.0,109920.0,1.1912936]
[1759071699532,0.36817492,109930.0,109920.0,0.849943]
[1759071699730,0.36817492,109930.0,109920.0,2.0230536]
[1759071700233,0.0217441,109930.0,109920.0,2.0230536]
[1759071700435,0.0217441,109930.0,109920.0,2.3644042]
[1759071700628,0.3630947,109930.0,109920.0,2.0230536]
[1759071701330,0.97258399,109950.0,109940.0,0.1139675]
[1759071701532,0.99446483,109950.0,109940.0,0.1139675]
[1759071702530,1.67714123,109950.0,109940.0,0.1139675]
[1759071702935,1.68114123,109950.0,109940.0,0.1139675]
[1759071704132,1.64837025,109950.0,109940.0,0.1139675]
[1759071705728,0.81665025,109950.0,109940.0,0.1139675]
[1759071705933,1.64889025,109950.0,109940.0,0.1139675]
[1759071709033,0.47531205,109950.0,109940.0,0.1139675]
[1759071709235,0.46262205,109950.0,109940.0,0.4883875]
[1759071709538,0.09935385,109950.0,109940.0,1.2297257]
[1759071710235,0.02588084,109950.0,109940.0,1.2297257]
[1759071710536,0.02588084,109950.0,109940.0,1.7207475]
[1759071710833,0.02288084,109950.0,109940.0,2.0620857]
[1759071712135,0.02288084,109950.0,109940.0,1.2297257]
[1759071712336,0.02288084,109950.0,109940.0,2.0618857]
[1759071712530,0.02288084,109950.0,109940.0,1.2297257]
[1759071712730,0.04482084,109950.0,109940.0,2.0618457]
[1759071713428,0.02288084,109950.0,109940.0,2.0618457]
[1759071715437,0.02288084,109950.0,109940.0,2.0615657]
[1759071716338,0.02288084,109950.0,109940.0,2.0614857]
[1759071716936,0.02288084,109950.0,109940.0,1.2297257]
[1759071717138,0.02288084,109950.0,109940.0,2.0614057]
[1759071717738,0.02288084,109950.0,109940.0,1.2297257]
[1759071718040,0.02288084,109950.0,109940.0,1.7200675]
[1759071718230,0.02288084,109950.0,109940.0,2.0614057]
[1759071719834,0.001,109950.0,109940.0,2.0614057]
[1759071721930,0.45398836,109960.0,109950.0,0.1258592]
[1759071722127,0.47579903,109960.0,109950.0,0.50087495]
[1759071723438,0.02181067,109960.0,109950.0,0.84221315]
[1759071723837,0.02181067,109960.0,109950.0,1.58355135]
[1759071724034,0.3768982,109980.0,109970.0,0.1258427]
[1759071724229,0.39787369,109980.0,109970.0,0.48723845]
[1759071724633,0.79787369,109980.0,109970.0,0.48723845]
[1759071724834,0.7768982,109980.0,109970.0,0.48723845]
[1759071725237,0.79788886,109980.0,109970.0,0.12643845]
[1759071725636,0.81013837,109980.0,109970.0,0.12643845]
[1759071725833,0.44780951,109980.0,109970.0,0.12643845]
[1759071726037,0.78914771,109980.0,109970.0,0.12643845]
[1759071726232,1.13048591,109980.0,109970.0,0.12615275]
[1759071726739,1.13448591,109980.0,109970.0,0.12615275]
[1759071727143,2.0404842,109980.0,109970.0,0.12615275]
[1759071727442,1.3578078,109980.0,109970.0,0.12615275]
[1759071727645,2.0404842,109980.0,109970.0,0.12615275]
[1759071728242,1.3578078,109980.0,109970.0,0.12615275]
[1759071728546,2.0404842,109980.0,109970.0,0.12615275]
[1759071729046,1.3578078,109980.0,109970.0,0.12615275]
[1759071729249,2.0404842,109980.0,109970.0,0.12615275]
[1759071733250,2.0404842,109980.0,109970.0,0.03526005]
[1759071733544,2.0404842,109980.0,109970.0,0.01393005]
[1759071733750,0.03566,109960.0,109950.0,0.4517085]
[1759071733940,1.5510564,109960.0,109950.0,0.3608]
[1759071734139,1.2097182,109960.0,109950.0,0.3608]
[1759071735050,1.2097182,109960.0,109950.0,0.3618]
[1759071735447,1.9510564,109960.0,109950.0,0.3618]
[1759071735949,1.97268582,109960.0,109950.0,0.3618]
[1759071736151,1.97268582,109960.0,109950.0,0.4527092]
[1759071736344,1.97268582,109960.0,109950.0,0.4537092]
[1759071737249,1.63134762,109960.0,109950.0,0.4537092]
[1759071738048,1.63130762,109960.0,109950.0,0.4537092]
[1759071738448,2.33344582,109960.0,109950.0,0.002]
[1759071738753,2.33344582,109960.0,109940.0,0.4517173]
[1759071738754,0.03589,109950.0,109940.0,0.3608]
[1759071738950,0.03589,109950.0,109930.0,0.4517214]
[1759071738951,0.03589,109940.0,109930.0,0.4746114]
[1759071739252,1.23141762,109940.0,109930.0,0.4746114]
[1759071739848,1.22741762,109940.0,109930.0,0.4746114]
[1759071740243,1.39089114,109940.0,109930.0,0.4746114]
[1759071740851,1.39089114,109940.0,109930.0,0.4816114]
[1759071741560,1.39089114,109940.0,109930.0,0.4856114]
[1759071741850,1.39089114,109940.0,109930.0,0.39469]
[1759071742044,1.79089114,109940.0,109930.0,0.3718]
[1759071742844,1.79129114,109940.0,109930.0,0.3718]
[1759071743242,0.95833114,109940.0,109930.0,0.3718]
[1759071743453,1.79117114,109940.0,109930.0,0.3718]
[1759071744051,0.12607544,109940.0,109930.0,0.4856157]
[1759071744242,0.12607544,109940.0,109930.0,1.2395639]
[1759071744243,0.11716544,109940.0,109930.0,1.2395639]
[1759071744450,0.09553602,109940.0,109930.0,1.2395639]
[1759071744853,0.02298,109940.0,109930.0,1.2395639]
[1759071745850,0.02298,109940.0,109930.0,1.25370391]
[1759071746350,0.02298,109940.0,109930.0,1.74540571]
[1759071747550,0.3643182,109940.0,109930.0,1.74540571]
[1759071747947,0.3643182,109940.0,109930.0,2.08674391]
[1759071748345,0.38588204,109950.0,109940.0,0.1264175]
[1759071748651,0.38588204,109950.0,109940.0,0.50135751]
[1759071749654,0.04454384,109950.0,109940.0,0.50335751]
[1759071749857,0.38588204,109950.0,109940.0,0.50335751]
[1759071751351,0.38588204,109950.0,109940.0,0.50535751]
[1759071751952,0.04454384,109950.0,109940.0,0.50535751]
[1759071752146,0.38588204,109950.0,109940.0,0.50535751]
[1759071755756,0.38588204,109950.0,109940.0,1.33951751]
[1759071757753,0.38588204,109950.0,109940.0,0.50535751]
[1759071758048,0.38588204,109950.0,109940.0,1.33931751]
[1759071758359,0.38588204,109950.0,109940.0,0.50535751]
[1759071758558,0.39879204,109950.0,109940.0,0.50535751]
[1759071758762,0.39879204,109950.0,109940.0,1.33919751]
[1759071759861,0.39879204,109950.0,109940.0,0.50535751]
[1759071760161,0.39879204,109950.0,109940.0,1.33971751]
[1759071760761,0.39879204,109950.0,109940.0,1.33955751]
[1759071761263,0.42042743,109950.0,109940.0,1.33955751]
[1759071761660,0.07908923,109950.0,109940.0,1.33955751]
[1759071761968,0.42042743,109950.0,109940.0,1.33955751]
[1759071763162,0.07908923,109950.0,109940.0,1.33955751]
[1759071763357,0.42042743,109950.0,109940.0,1.33955751]
[1759071764362,0.42037248,109950.0,109940.0,1.33955751]
[1759071764965,0.06617923,109950.0,109940.0,1.68084076]
[1759071765160,0.02163539,109950.0,109940.0,2.02212401]
[1759071765460,0.02163539,109950.0,109940.0,2.02194063]
[1759071767761,0.02163539,109950.0,109940.0,1.33937413]
[1759071767958,0.02163539,109950.0,109940.0,2.02194063]
[1759071768258,0.36291864,109950.0,109940.0,1.68065738]
[1759071768757,0.02163539,109950.0,109940.0,1.68065738]
[1759071769060,0.34128325,109950.0,109940.0,1.68065738]
[1759071769762,0.34128325,109950.0,109940.0,2.02194063]
[1759071769964,0.36344325,109950.0,109940.0,2.02194063]
[1759071770163,0.36344325,109950.0,109940.0,1.68065738]
[1759071770863,0.02216,109950.0,109940.0,2.08065738]
[1759071771065,0.37705325,109960.0,109950.0,0.1270792]
[1759071771256,0.73992992,109960.0,109950.0,0.4878792]
[1759071772165,0.74092992,109960.0,109950.0,0.4878792]
[1759071772666,0.74092992,109960.0,109950.0,1.3212392]
[1759071772965,0.74092992,109960.0,109950.0,1.3211192]
[1759071774268,0.74092992,109960.0,109950.0,0.4878792]
[1759071774567,0.74092992,109960.0,109950.0,1.3211192]
[1759071775861,0.74092992,109960.0,109950.0,1.3209192]
[1759071777969,0.74092992,109960.0,109950.0,1.3208392]
[1759071778369,0.74092992,109960.0,109950.0,1.3207192]
[1759071779671,0.74092992,109960.0,109950.0,0.4878792]
[1759071779973,0.74092992,109960.0,109950.0,1.3206392]
[1759071781572,0.74092992,109960.0,109950.0,0.4878792]
[1759071781774,0.74092992,109960.0,109950.0,1.3204792]
[1759071783466,0.74092992,109960.0,109950.0,1.3203192]
[1759071788175,0.05836342,109960.0,109950.0,1.3203192]
[1759071788566,0.74092992,109960.0,109950.0,1.3203192]
[1759071792474,0.74092992,109960.0,109950.0,0.4878792]
[1759071792675,0.74092992,109960.0,109950.0,1.3197992]
[1759071795178,0.74092992,109960.0,109950.0,0.4878792]
[1759071795378,0.74092992,109960.0,109950.0,1.3197592]
[1759071795576,0.72731992,109960.0,109950.0,1.3197592]
[1759071795878,0.36387667,109960.0,109950.0,1.66104245]
[1759071801081,0.38621667,109960.0,109950.0,1.66100245]
[1759071804386,0.38621667,109960.0,109950.0,1.66096245]
[1759071805589,0.36387667,109960.0,109950.0,1.66096245]
[1759071807584,0.76174909,109960.0,109950.0,0.4741992]
[1759071807792,0.76174909,109960.0,109950.0,1.3059992]
[1759071807977,0.74031992,109960.0,109950.0,0.4741992]
[1759071808483,1.48160317,109960.0,109950.0,0.3608]
[1759071811383,2.31340317,109960.0,109950.0,0.3608]
[1759071812480,1.48160317,109960.0,109950.0,0.3608]
[1759071812681,2.31340317,109960.0,109950.0,0.4748392]
[1759071813889,1.48160317,109960.0,109950.0,0.4748392]
[1759071814094,2.31340317,109960.0,109950.0,0.4748392]
[1759071815188,2.31340317,109960.0,109940.0,1.1926]
[1759071815189,2.31340317,109960.0,109940.0,0.3608]
[1759071815380,0.7177265,109950.0,109940.0,0.3608]
[1759071815585,0.73931992,109950.0,109940.0,0.3608]
[1759071816287,0.73931992,109950.0,109940.0,0.3628]
[1759071816792,1.48060317,109950.0,109940.0,0.002]
[1759071817681,1.48060317,109950.0,109940.0,0.004]
[1759071818190,2.31240317,109950.0,109940.0,0.004]
[1759071818883,1.97111992,109950.0,109940.0,0.004]
[1759071819190,1.13931992,109950.0,109940.0,0.004]
[1759071819388,1.57111992,109950.0,109940.0,0.004]
[1759071820282,0.73931992,109950.0,109940.0,0.004]
[1759071820595,1.57111992,109950.0,109940.0,0.004]
[1759071822293,0.73931992,109950.0,109940.0,0.004]
[1759071822493,1.57115992,109950.0,109940.0,0.004]
[1759071822689,1.57111992,109950.0,109940.0,0.004]
[1759071823394,1.57115992,109950.0,109940.0,0.004]
[1759071825690,0.73931992,109950.0,109940.0,0.004]
[1759071825896,1.57115992,109950.0,109940.0,0.004]
[1759071826097,0.73931992,109950.0,109940.0,0.004]
[1759071826297,1.57139642,109950.0,109940.0,0.004]
[1759071827896,0.73959642,109950.0,109940.0,0.004]
[1759071828103,1.57139642,109950.0,109940.0,0.02713]
[1759071828294,0.73959642,109950.0,109940.0,0.4788475]
[1759071828599,1.57139642,109950.0,109940.0,0.4788475]
[1759071828999,0.73959642,109950.0,109940.0,0.4788475]
[1759071829297,1.57139642,109950.0,109940.0,0.4788475]
[1759071830001,0.88855342,109950.0,109940.0,0.4788475]
[1759071830202,1.57139642,109950.0,109940.0,0.4788475]
[1759071831402,1.55152215,109950.0,109940.0,0.1317275]
[1759071832200,0.37830065,109950.0,109940.0,0.1317275]
[1759071832399,1.21010065,109950.0,109940.0,0.1317275]
[1759071833397,0.03687915,109950.0,109940.0,0.1317275]
[1759071833602,0.37830065,109950.0,109940.0,1.233949]
[1759071833796,1.2169414,109960.0,109950.0,0.1275492]
[1759071833997,1.2169414,109960.0,109950.0,0.4883492]
[1759071834393,0.3851414,109960.0,109950.0,0.4883492]
[1759071834597,0.3851414,109960.0,109950.0,0.8883492]
[1759071834803,0.3642015,109960.0,109950.0,0.8883492]
[1759071835005,0.3652015,109960.0,109950.0,0.8883492]
[1759071836594,0.02378,109960.0,109950.0,0.8883492]
[1759071836796,0.3652015,109960.0,109950.0,0.8883492]
[1759071840606,0.02378,109960.0,109950.0,0.8883492]
[1759071840808,0.3652015,109960.0,109950.0,0.8883492]
[1759071841004,0.33534937,109960.0,109950.0,0.8883492]
[1759071841204,0.02278,109960.0,109950.0,0.8883492]
[1759071841405,0.3642015,109960.0,109950.0,0.8883492]
[1759071842210,0.8642015,109960.0,109950.0,0.8883492]
[1759071843311,0.88584421,109960.0,109950.0,0.8883492]
[1759071845908,0.79056712,109960.0,109950.0,0.8883492]
[1759071846410,0.76892441,109960.0,109950.0,0.8883492]
[1759071846608,0.79170441,109960.0,109950.0,0.8883492]
[1759071847011,0.45028291,109960.0,109950.0,0.8883492]
[1759071847202,0.79170441,109960.0,109950.0,0.8883492]
[1759071848509,0.42750291,109960.0,109950.0,0.8883492]
[1759071848705,0.42750291,109960.0,109950.0,1.2297707]
[1759071851011,0.39765299,109960.0,109950.0,1.2297707]
[1759071854111,0.39765299,109960.0,109950.0,1.2317707]
[1759071854417,0.39765299,109960.0,109950.0,1.7217892]
[1759071854819,0.39765299,109960.0,109950.0,1.7237892]
[1759071856214,0.36780302,109960.0,109950.0,1.7237892]
[1759071856413,0.70922452,109960.0,109950.0,1.7237892]
[1759071858025,0.36780302,109960.0,109950.0,1.7237892]
[1759071858217,0.70922452,109960.0,109950.0,1.7237092]
[1759071860520,0.70922452,109960.0,109950.0,0.8923492]
[1759071860725,0.70922452,109960.0,109950.0,1.7236692]
[1759071861226,0.67937459,109960.0,109950.0,1.7236692]
[1759071862121,0.67937459,109960.0,109950.0,0.8923492]
[1759071862326,0.67937459,109960.0,109950.0,1.7236692]
[1759071863428,0.70183459,109960.0,109950.0,1.7236692]
[1759071864128,0.72349279,109960.0,109950.0,1.7236692]
[1759071864829,0.72349279,109960.0,109950.0,0.8923492]
[1759071865029,0.72349302,109960.0,109950.0,1.7236292]
[1759071865226,0.35961152,109960.0,109950.0,1.6650507]
[1759071865935,0.33795309,109960.0,109950.0,1.6650507]
[1759071867223,0.33795309,109960.0,109950.0,1.6650107]
[1759071867224,0.30810415,109960.0,109950.0,1.6650107]
[1759071869838,0.30810415,109960.0,109950.0,0.8337707]
[1759071870133,0.30810415,109960.0,109950.0,1.6649707]
[1759071872039,0.30810415,109960.0,109950.0,0.8337707]
[1759071872238,0.32976845,109960.0,109950.0,1.6649307]
[1759071875542,0.32976845,109960.0,109950.0,2.0257307]
[1759071876554,0.32976845,109960.0,109950.0,1.6843092]
[1759071876841,0.32976845,109960.0,109950.0,2.0257307]
[1759071877445,0.32976845,109960.0,109950.0,1.6843092]
[1759071877646,0.32976845,109960.0,109950.0,2.0257307]
[1759071878545,0.32976845,109960.0,109950.0,3.1957307]
[1759071880449,0.32976845,109960.0,109950.0,2.8543092]
[1759071880745,0.32976845,109960.0,109950.0,3.1957307]
[1759071881447,0.29991881,109960.0,109950.0,3.1957307]
[1759071885348,0.27825451,109960.0,109950.0,3.1957307]
[1759071886246,0.61940799,109960.0,109950.0,3.19546268]
[1759071888140,0.29992966,109960.0,109950.0,3.19546268]
[1759071888341,0.64108314,109960.0,109950.0,3.19546268]
[1759071888652,0.61940799,109960.0,109950.0,3.19546268]
[1759071888844,0.6410831,109960.0,109950.0,3.19546268]
[1759071890250,0.6410831,109960.0,109950.0,2.36430268]
[1759071890550,0.6410831,109960.0,109950.0,3.19522268]
[1759071890951,0.6410831,109960.0,109950.0,2.8540692]
[1759071891249,0.6410831,109960.0,109950.0,3.19522268]
[1759071891559,0.61123413,109960.0,109950.0,3.19522268]
[1759071892851,0.61123413,109960.0,109950.0,2.8540692]
[1759071893150,0.61123413,109960.0,109950.0,3.19522268]
[1759071898552,0.27008065,109960.0,109950.0,3.19522268]
[1759071898753,0.61123413,109960.0,109950.0,3.19522268]
[1759071900056,0.97382812,109960.0,109950.0,2.8539492]
[1759071900258,0.95238761,109960.0,109950.0,2.8539492]
[1759071900555,0.61123413,109960.0,109950.0,3.19510268]
[1759071901655,0.27008065,109960.0,109950.0,3.19510268]
[1759071901850,0.61123413,109960.0,109950.0,3.19510268]
[1759071902150,0.27008065,109960.0,109950.0,3.19510268]
[1759071902357,0.27008065,109960.0,109950.0,2.8539492]
[1759071902656,0.21855652,109960.0,109950.0,3.59510268]
[1759071904757,0.18355652,109960.0,109950.0,3.59510268]
[1759071905758,0.18355652,109960.0,109950.0,3.19502268]
[1759071909862,0.15370999,109960.0,109950.0,3.19502268]
[1759071910562,0.15370999,109960.0,109950.0,3.53417616]
[1759071910758,0.15370999,109960.0,109950.0,3.53917616]
[1759071912154,0.12708049,109960.0,109950.0,3.53917616]
[1759071912354,0.12708049,109960.0,109950.0,3.54117616]
[1759071913162,0.09208929,109960.0,109950.0,3.53617616]
[1759071913461,0.09208929,109960.0,109950.0,3.53417616]
[1759071913661,0.09208929,109960.0,109950.0,3.53617616]
[1759071914766,0.05086269,109960.0,109950.0,3.53617616]
[1759071914963,0.44956128,109980.0,109970.0,0.03509]
[1759071915266,0.47120625,109980.0,109970.0,2.01929618]
[1759071915461,0.47120625,109980.0,109970.0,1.6781427]
[1759071915662,0.47120625,109980.0,109970.0,2.01929618]
[1759071917068,0.47520625,109980.0,109970.0,2.01929618]
[1759071917470,0.81635973,109980.0,109970.0,1.18873618]
[1759071917663,1.21635973,109980.0,109970.0,1.6781027]
[1759071917869,1.22919973,109980.0,109970.0,1.6781027]
[1759071918067,1.22919973,109980.0,109970.0,0.8475827]
[1759071918266,1.22919973,109980.0,109970.0,2.01925618]
[1759071919668,1.22919973,109980.0,109970.0,1.18873618]
[1759071920070,1.22919973,109980.0,109970.0,2.01921618]
[1759071920372,0.54689277,109980.0,109970.0,2.01921618]
[1759071920673,1.22919973,109980.0,109970.0,2.01921618]
[1759071921071,0.54689277,109980.0,109970.0,2.01921618]
[1759071921269,1.22919973,109980.0,109970.0,2.01921618]
[1759071921976,1.21635973,109980.0,109970.0,1.6780627]
[1759071922174,0.47520625,109980.0,109970.0,1.6780627]
[1759071922367,0.47520625,109980.0,109970.0,2.01921618]
[1759071923473,0.87520625,109980.0,109970.0,2.01913618]
[1759071923677,1.22919973,109980.0,109970.0,0.8475827]
[1759071923865,1.22919973,109980.0,109970.0,1.6645627]
[1759071924067,1.22919973,109980.0,109970.0,0.8341627]
[1759071924268,1.22919973,109980.0,109970.0,1.6645627]
[1759071924868,0.13405277,109980.0,109970.0,2.01866618]
[1759071925173,0.47520625,109980.0,109970.0,2.01866618]
[1759071925971,0.13405277,109980.0,109970.0,2.01866618]
[1759071926177,0.47520625,109980.0,109970.0,2.01866618]
[1759071926367,0.47520625,109980.0,109970.0,1.6775127]
[1759071926675,0.47520625,109980.0,109970.0,2.01866618]
[1759071926980,0.47520625,109980.0,109970.0,0.8471127]
[1759071927173,0.81635973,109980.0,109970.0,0.8471127]
[1759071927373,1.22919973,109980.0,109970.0,1.6645227]
[1759071927675,1.19935129,109980.0,109970.0,1.6645227]
[1759071928071,1.19935129,109980.0,109970.0,1.6428527]
[1759071928277,1.19935129,109980.0,109970.0,0.8124927]
[1759071929578,1.29023569,109980.0,109970.0,0.8124927]
[1759071931178,1.31856565,109980.0,109970.0,0.8124927]
[1759071931382,0.63625869,109980.0,109970.0,0.8124927]
[1759071931680,1.31856565,109980.0,109970.0,0.8124927]
[1759071932677,2.52278251,109980.0,109970.0,0.4516927]
[1759071933182,2.52278251,109980.0,109970.0,0.0908927]
[1759071933580,0.03448,109970.0,109960.0,0.4516957]
[1759071933780,0.73843193,109970.0,109960.0,0.4516957]
[1759071933982,1.13843193,109970.0,109960.0,0.4516957]
[1759071935383,1.13843193,109970.0,109960.0,0.3608]
[1759071935784,1.13843193,109970.0,109960.0,0.4517009]
[1759071936680,0.03448,109960.0,109940.0,0.451712]
[1759071936887,0.71678696,109950.0,109940.0,0.451712]
[1759071937080,0.73843193,109950.0,109940.0,0.451712]
[1759071937284,1.13843193,109950.0,109940.0,0.451712]
[1759071937683,1.96871193,109950.0,109940.0,0.451712]
[1759071937883,1.96871193,109950.0,109940.0,0.454712]
[1759071938088,2.05962113,109950.0,109940.0,0.454712]
[1759071938281,2.05962113,109950.0,109940.0,0.476582]
[1759071938581,2.05966113,109950.0,109940.0,0.476582]
[1759071939487,1.65966113,109950.0,109940.0,0.479582]
[1759071940686,0.82934113,109950.0,109940.0,0.479582]
[1759071940889,1.65966113,109950.0,109940.0,0.479582]
[1759071941187,0.82934113,109950.0,109940.0,0.479582]
[1759071941391,1.65966113,109950.0,109940.0,0.479582]
[1759071942691,1.56875193,109950.0,109940.0,0.479582]
[1759071944190,0.73843193,109950.0,109940.0,0.479582]
[1759071944393,1.56879193,109950.0,109940.0,0.479582]
[1759071948200,1.56916131,109950.0,109940.0,0.479582]
[1759071952112,0.73880131,109950.0,109940.0,0.479582]
[1759071952311,1.56916131,109950.0,109940.0,0.479582]
[1759071953507,1.56916131,109950.0,109940.0,0.457712]
[1759071953701,1.53930445,109950.0,109940.0,0.3668]
[1759071954398,1.10894445,109950.0,109940.0,0.4577175]
[1759071954602,0.76760628,109950.0,109940.0,0.4930375]
[1759071954808,1.19796628,109950.0,109940.0,0.4930375]
[1759071955112,1.53930445,109950.0,109940.0,0.4930375]
[1759071955698,0.02626811,109950.0,109940.0,0.4930375]
[1759071955898,0.02626811,109950.0,109940.0,1.23437567]
[1759071956103,0.02164497,109950.0,109940.0,1.23437567]
[1759071956303,1.19317817,109960.0,109950.0,0.1262292]
[1759071956511,1.2155506,109960.0,109950.0,0.4870292]
[1759071957012,0.3851906,109960.0,109950.0,0.4870292]
[1759071957211,1.2155506,109960.0,109950.0,0.4870292]
[1759071957615,1.2155506,109960.0,109950.0,0.4880292]
[1759071958706,1.18569708,109960.0,109950.0,0.4880292]
[1759071958911,1.2155506,109960.0,109950.0,0.4880292]
[1759071960102,0.87421243,109960.0,109950.0,0.4880292]
[1759071960305,1.2155506,109960.0,109950.0,0.4880292]
[1759071961413,1.3064515,109960.0,109950.0,0.4880292]
[1759071962228,1.2155506,109960.0,109950.0,0.4880292]
[1759071963917,0.3851906,109960.0,109950.0,0.4880292]
[1759071964117,1.2155106,109960.0,109950.0,0.4880292]
[1759071967718,1.19313817,109970.0,109960.0,0.1262209]
[1759071967918,1.19313817,109970.0,109960.0,0.4870209]
[1759071968720,0.36281817,109970.0,109960.0,0.4870209]
[1759071968921,1.19513817,109970.0,109960.0,0.4870209]
[1759071971121,1.21593422,109970.0,109960.0,0.4870209]
[1759071972222,0.38561422,109970.0,109960.0,0.4870209]
[1759071972413,0.36481817,109970.0,109960.0,0.4870209]
[1759071972619,0.02348,109970.0,109960.0,1.22835907]
[1759071973122,0.36481817,109970.0,109960.0,1.22835907]
[1759071973318,0.36481817,109970.0,109960.0,0.8870209]
[1759071975622,0.36481817,109970.0,109960.0,1.7172209]
[1759071978524,0.36481817,109970.0,109960.0,0.8870209]
[1759071979231,0.36481817,109970.0,109960.0,0.4870209]
[1759071979628,0.38674633,109970.0,109960.0,0.4870209]
[1759071982832,0.47763903,109970.0,109960.0,0.4870209]
[1759071983035,0.87763903,109970.0,109960.0,0.4739509]
[1759071983229,0.1132309,109960.0,109950.0,0.4864233]
[1759071983424,0.8268254,109960.0,109950.0,0.4864233]
[1759071983629,1.6569854,109960.0,109950.0,0.4864233]
[1759071983829,2.0569854,109960.0,109950.0,0.4517033]
[1759071984033,2.0569854,109960.0,109950.0,0.0909033]
[1759071984835,2.0569854,109960.0,109950.0,0.0919033]
[1759071986033,1.5876254,109960.0,109950.0,0.0919092]
[1759071986237,2.4177854,109960.0,109950.0,0.0919092]
[1759071986432,1.5876254,109960.0,109950.0,0.0919092]
[1759071986735,2.4177854,109960.0,109950.0,0.1135592]
[1759071986932,1.5876254,109960.0,109950.0,0.1135592]
[1759071987329,2.4177854,109960.0,109950.0,0.1135592]
[1759071987637,2.4177854,109960.0,109950.0,0.0919092]
[1759071988039,2.0569854,109960.0,109950.0,0.0919092]
[1759071988339,2.0570254,109960.0,109950.0,0.0919092]
[1759071991543,1.2268254,109960.0,109950.0,0.0919092]
[1759071991744,2.0570254,109960.0,109950.0,0.0919092]
[1759071993146,2.4178254,109960.0,109950.0,0.001]
[1759071993545,2.45056878,109960.0,109950.0,0.001]
[1759071994947,2.45600878,109960.0,109950.0,0.001]
[1759071995136,2.4232654,109960.0,109950.0,0.001]
[1759071995339,0.1196892,109950.0,109940.0,0.35946297]
[1759071995535,0.84589715,109950.0,109940.0,0.35946297]
[1759071996545,0.84589715,109950.0,109940.0,0.36246297]
[1759071996942,1.24589715,109950.0,109940.0,0.36246297]
[1759071997148,1.24589715,109950.0,109940.0,0.003]
[1759071997551,2.08149715,109950.0,109940.0,0.003]
[1759071998653,2.08149715,109950.0,109940.0,0.006]
[1759071999350,2.08125715,109950.0,109940.0,0.006]
[1759071999551,1.68125715,109950.0,109940.0,0.006]
[1759072000055,0.84589715,109950.0,109940.0,0.006]
[1759072000253,1.68113715,109950.0,109940.0,0.006]
[1759072002449,0.84589715,109950.0,109940.0,0.006]
[1759072002652,1.68093715,109950.0,109940.0,0.006]
[1759072002842,2.08093715,109950.0,109940.0,0.006]
[1759072003043,1.24589715,109950.0,109940.0,0.006]
[1759072003250,2.08085715,109950.0,109940.0,0.006]
[1759072003648,1.24589715,109950.0,109940.0,0.006]
[1759072003849,2.08073715,109950.0,109940.0,0.006]
[1759072004457,1.24589715,109950.0,109940.0,0.006]
[1759072004655,2.08065715,109950.0,109940.0,0.006]
[1759072004848,2.08065715,109950.0,109940.0,0.0969175]
[1759072005556,1.24589715,109950.0,109940.0,0.0969175]
[1759072005749,2.08065715,109950.0,109940.0,0.0969175]
[1759072007056,2.44145715,109950.0,109940.0,0.006]
[1759072008255,2.44163249,109950.0,109940.0,0.006]
[1759072009659,2.41970433,109950.0,109940.0,0.006]
[1759072010156,0.0128,109930.0,109920.0,0.37439]
[1759072010361,1.57422223,109930.0,109920.0,0.3608]
[1759072011255,1.93750713,109930.0,109920.0,0.3608]
[1759072012361,1.93750713,109930.0,109920.0,0.3688]
[1759072012758,1.59608129,109930.0,109920.0,0.3748]
[1759072013268,1.93750713,109930.0,109920.0,0.3748]
[1759072013656,1.93750713,109930.0,109920.0,0.014]
[1759072013657,2.69830713,109930.0,109920.0,0.014]
[1759072014061,2.73099677,109930.0,109920.0,0.014]
[1759072015262,2.73099677,109930.0,109920.0,0.006]
[1759072015459,2.73099677,109930.0,109920.0,0.009]
[1759072015963,2.73111677,109930.0,109920.0,0.009]